bitfinex-derivatives/quotes_SOLF0:USTF0_20260220
["timestamp","ask_amount","ask_price","bid_price","bid_amount"]
[1771590050527,3.65674416,83.7,83.661,11.81300113]
[1771590051026,10.7577,83.699,83.661,11.81300113]
[1771590051924,8.68648931,83.741,83.661,11.81300113]
[1771590052124,3.65674416,83.72,83.671,11.82888741]
[1771590052519,3.65674416,83.73,83.671,11.82888741]
[1771590053717,10.7554,83.716,83.671,11.82888741]
[1771590054925,10.7564,83.709,83.671,11.82888741]
[1771590056633,10.7573,83.702,83.671,11.82888741]
[1771590057233,3.65674416,83.7,83.651,11.82743428]
[1771590058734,10.7588,83.69,83.651,11.82743428]
[1771590059828,10.7575,83.7,83.661,11.82232995]
[1771590060227,3.65674416,83.72,83.67,3.65674416]
[1771590060536,3.65674416,83.72,83.671,11.82249158]
[1771590060736,3.65674416,83.73,83.671,11.82249158]
[1771590061035,8.71385638,83.729,83.671,11.82249158]
[1771590061235,8.71385638,83.728,83.671,11.82249158]
[1771590061532,8.71385638,83.727,83.68,3.65674416]
[1771590061735,8.71385638,83.739,83.681,11.8223703]
[1771590061934,8.71385638,83.738,83.681,11.8223703]
[1771590062132,8.71385638,83.737,83.681,11.8223703]
[1771590062334,3.65674416,83.74,83.691,11.89175611]
[1771590062634,8.72980984,83.739,83.691,11.89175611]
[1771590062828,3.65674416,83.74,83.691,11.89175611]
[1771590062829,8.72980984,83.738,83.691,11.89175611]
[1771590063028,10.7534,83.732,83.691,11.89175611]
[1771590063234,3.65674416,83.75,83.701,11.89158447]
[1771590063431,8.7252908,83.749,83.701,11.89158447]
[1771590063637,3.65674416,83.74,83.701,11.89158447]
[1771590064730,10.7527,83.738,83.701,11.89158447]
[1771590066134,8.72419754,83.745,83.701,11.89158447]
[1771590066338,8.72242281,83.752,83.701,11.89158447]
[1771590066536,3.65674416,83.76,83.701,11.89158447]
[1771590067142,3.65674416,83.76,83.711,11.87757631]
[1771590067444,10.7509,83.752,83.711,11.87757631]
[1771590068439,3.65674416,83.76,83.711,11.87757631]
[1771590069141,10.7497,83.761,83.711,11.87757631]
[1771590069339,3.65674416,83.75,83.711,11.87757631]
[1771590069543,3.65674416,83.76,83.711,11.87757631]
[1771590071045,3.65674416,83.75,83.711,11.87757631]
[1771590072537,11.07559189,83.785,83.711,11.87757631]
[1771590072538,3.65674416,83.76,83.711,11.87757631]
[1771590073145,3.65674416,83.75,83.711,11.87757631]
[1771590074240,3.65674416,83.75,83.711,22.63367631]
[1771590074646,3.65674416,83.75,83.712,11.83358089]
[1771590075650,3.65674416,83.75,83.715,10.7555]
[1771590079560,3.65674416,83.75,83.715,22.58910752]
[1771590080161,3.65674416,83.75,83.716,11.83364679]
[1771590085257,10.7513,83.749,83.716,11.83364679]
[1771590087161,3.65674416,83.75,83.716,11.83364679]
[1771590087359,3.65674416,83.74,83.716,11.83364679]
[1771590089462,3.65674416,83.75,83.716,11.83364679]
[1771590090662,3.65674416,83.75,83.717,10.7553]
[1771590090858,3.65674416,83.75,83.718,11.77536298]
[1771590091065,3.65674416,83.75,83.72,10.7549]
[1771590091258,3.65674416,83.75,83.721,11.77530337]
[1771590097674,14.40784416,83.75,83.721,11.77530337]
[1771590098582,3.65674416,83.75,83.721,11.77530337]
[1771590098765,3.65674416,83.76,83.724,11.81255758]
[1771590099074,3.65674416,83.78,83.731,11.81248503]
[1771590099273,3.65674416,83.78,83.747,11.81248503]
[1771590099667,8.73670433,83.796,83.747,11.81248503]
[1771590099868,3.65674416,83.8,83.755,11.81248503]
[1771590100573,3.65674416,83.79,83.755,11.81248503]
[1771590100776,3.65674416,83.78,83.721,11.77674325]
[1771590100969,3.65674416,83.77,83.721,11.77674325]
[1771590101674,3.65674416,83.77,83.741,11.77668978]
[1771590102772,3.65674416,83.77,83.744,22.46770838]
[1771590103368,3.65674416,83.77,83.745,11.71598508]
[1771590105577,4.416e-05,83.76,83.745,11.71598508]
[1771590105978,4.416e-05,83.76,83.747,10.7514]
[1771590107180,3.65674416,83.77,83.747,10.7514]
[1771590109281,3.65674416,83.77,83.747,22.40458723]
[1771590111886,3.65019732,83.77,83.747,22.40458723]
[1771590112288,3.65019732,83.78,83.747,22.40458723]
[1771590113184,3.65019732,83.78,83.748,11.63858783]
[1771590114687,10.7464,83.787,83.748,11.63858783]
[1771590116991,3.65019732,83.79,83.748,11.63858783]
[1771590116992,10.7473,83.78,83.748,11.63858783]
[1771590117493,14.39749732,83.78,83.748,11.63858783]
[1771590121194,11.07559189,83.811,83.738,10.7525]
[1771590121195,3.65019732,83.77,83.738,11.60128203]
[1771590121391,10.7482,83.773,83.738,11.60128203]
[1771590122297,3.65019732,83.77,83.724,11.60050553]
[1771590122690,14.40009732,83.76,83.724,11.60050553]
[1771590123387,3.65019732,83.75,83.709,11.60053105]
[1771590123592,3.65019732,83.75,83.71,10.7561]
[1771590123794,10.7508,83.752,83.711,11.60053105]
[1771590123994,3.65019732,83.76,83.711,11.60053105]
[1771590125786,14.39999732,83.76,83.714,11.58896613]
[1771590126291,3.65019732,83.75,83.714,11.58896613]
[1771590126493,3.65019732,83.74,83.691,11.59242549]
[1771590126698,3.65019732,83.73,83.691,11.59242549]
[1771590126888,3.65019732,83.72,83.678,11.59242549]
[1771590127094,3.65019732,83.7,83.655,11.59242549]
[1771590129695,14.40769732,83.7,83.655,11.59242549]
[1771590129897,3.65019732,83.69,83.655,11.59242549]
[1771590130095,14.40769732,83.7,83.655,11.59242549]
[1771590134804,8.79821455,83.741,83.655,11.59242549]
[1771590134805,3.65019732,83.69,83.655,11.59242549]
[1771590135596,3.65019732,83.67,83.62,3.65019732]
[1771590135802,3.65019732,83.67,83.621,11.64864317]
[1771590136110,10.762,83.666,83.621,11.64864317]
[1771590137905,3.65019732,83.67,83.621,11.64864317]
[1771590138106,3.65019732,83.69,83.64,3.65019732]
[1771590138307,3.65019732,83.69,83.641,11.63319659]
[1771590138699,10.7602,83.679,83.641,11.63319659]
[1771590139609,10.7613,83.671,83.641,11.63319659]
[1771590140206,10.7625,83.662,83.62,3.65019732]
[1771590140409,3.65019732,83.66,83.61,3.65019732]
[1771590140805,3.65019732,83.67,83.61,3.65019732]
[1771590141807,3.65019732,83.67,83.611,10.7689]
[1771590141808,10.7622,83.664,83.611,10.7689]
[1771590142312,10.7622,83.664,83.612,5.84898196]
[1771590142711,10.7622,83.664,83.621,5.84898196]
[1771590143105,10.7622,83.664,83.631,5.84898247]
[1771590144509,3.65019732,83.68,83.588,180.91590255]
[1771590144510,10.7643,83.648,83.62,3.65019732]
[1771590144709,2.39600637,83.668,83.62,3.65019732]
[1771590145814,10.7631,83.657,83.62,3.65019732]
[1771590146510,10.7631,83.657,83.621,4.07979551]
[1771590147118,10.762,83.666,83.621,4.07979551]
[1771590147413,10.762,83.666,83.614,10.7685]
[1771590147414,10.762,83.666,83.631,4.07979551]
[1771590147610,6.06420224,83.7,83.651,3.33282824]
[1771590147808,4.04298071,83.699,83.651,3.33282824]
[1771590148013,3.65019732,83.69,83.651,3.33282824]
[1771590148210,7.69317803,83.69,83.651,3.33282824]
[1771590148814,21.5084,83.726,83.651,3.33282824]
[1771590148815,3.65019732,83.7,83.651,3.33282824]
[1771590149313,10.7593,83.686,83.651,3.33282824]
[1771590150216,10.7582,83.695,83.651,3.33282824]
[1771590153517,10.759,83.688,83.651,3.33282824]
[1771590154006,4.04298071,83.678,83.638,3.27956526]
[1771590154908,7.69317803,83.7,83.651,3.11531175]
[1771590155110,3.65019732,83.7,83.651,3.11531175]
[1771590155414,4.04298071,83.699,83.651,3.11531175]
[1771590155810,10.7586,83.692,83.651,3.11531175]
[1771590156314,4.04298071,83.673,83.635,3.03272015]
[1771590157115,4.04298071,83.673,83.63,3.65019732]
[1771590157116,4.04855413,83.689,83.641,3.02670101]
[1771590158817,10.7593,83.687,83.642,3.01063641]
[1771590159522,4.04855413,83.724,83.68,3.65019732]
[1771590159817,10.7515,83.747,83.701,10.7573]
[1771590160013,10.7515,83.747,83.71,3.65019732]
[1771590160212,4.43185616,83.749,83.7,3.65019732]
[1771590160819,4.43185616,83.749,83.634,21.5319]
[1771590160820,4.43185616,83.749,83.69,3.65019732]
[1771590161015,4.12398626,83.739,83.69,3.65019732]
[1771590161917,10.7534,83.732,83.69,3.65019732]
[1771590164920,14.9296437,83.732,83.69,3.65019732]
[1771590166524,4.17617964,83.731,83.69,3.65019732]
[1771590169924,10.7537,83.73,83.69,3.65019732]
[1771590170330,14.88313851,83.73,83.69,3.65019732]
[1771590171823,14.88313851,83.73,83.634,21.5319]
[1771590171824,10.7526,83.738,83.7,3.65019732]
[1771590172929,3.65019732,83.75,83.7,3.65019732]
[1771590172930,10.7536,83.731,83.7,3.65019732]
[1771590173229,10.7536,83.731,83.69,3.65019732]
[1771590174129,10.7536,83.731,83.69,3.65300867]
[1771590176225,14.91537491,83.731,83.69,3.65300867]
[1771590176430,10.7526,83.738,83.7,3.65300867]
[1771590176626,14.91437491,83.738,83.7,3.65300867]
[1771590176820,4.16177491,83.738,83.7,3.65300867]
[1771590177833,10.7535,83.732,83.7,3.65300867]
[1771590178226,10.7535,83.732,83.69,3.65300867]
[1771590178531,4.16320148,83.727,83.683,10.7596]
[1771590179828,4.16322442,83.725,83.68,3.65300867]
[1771590180725,4.20115357,83.719,83.67,3.65300867]
[1771590181727,4.2011687,83.71,83.67,3.65300867]
[1771590185635,10.7566,83.707,83.67,3.65300867]
[1771590186036,4.25528024,83.706,83.67,3.65300867]
[1771590186237,4.25525457,83.704,83.664,10.7621]
[1771590186830,10.7575,83.701,83.66,3.65300867]
[1771590189532,10.7575,83.701,83.661,10.7625]
[1771590192342,15.05448838,83.701,83.661,10.7625]
[1771590194845,4.29956993,83.7,83.661,10.7625]
[1771590195336,3.65300867,83.69,83.64,3.65300867]
[1771590195539,4.29956677,83.689,83.64,3.65300867]
[1771590196540,4.29956677,83.689,83.63,3.65300867]
[1771590196741,4.29956677,83.689,83.646,10.7643]
[1771590200445,4.3068386,83.683,83.63,3.65300867]
[1771590200944,4.3068386,83.674,83.62,3.65300867]
[1771590201539,4.3068386,83.674,83.63,3.65300867]
[1771590201741,4.30683457,83.689,83.64,3.65300867]
[1771590201937,4.30683457,83.689,83.65,3.65300867]
[1771590202840,4.30683457,83.689,83.65,14.41690867]
[1771590203043,4.30683457,83.689,83.65,10.7639]
[1771590204746,4.30683457,83.689,83.65,14.41690867]
[1771590206551,4.30683457,83.689,83.65,10.7639]
[1771590211049,4.4001066,83.67,83.62,3.65300867]
[1771590211252,4.4001066,83.67,83.595,21.5419]
[1771590211253,4.40009055,83.68,83.63,3.65300867]
[1771590212955,4.43312001,83.679,83.63,3.65300867]
[1771590213652,4.43312001,83.679,83.631,10.7663]
[1771590214854,4.44083493,83.678,83.631,10.7663]
[1771590216055,4.32469288,83.676,83.63,3.65300867]
[1771590217661,10.7608,83.675,83.63,3.65300867]
[1771590218064,4.32466784,83.674,83.63,3.65300867]
[1771590219551,15.10247664,83.672,83.63,3.65300867]
[1771590220664,14.67941045,83.725,83.63,3.65300867]
[1771590220665,15.11203092,83.664,83.63,3.65300867]
[1771590225365,4.34983092,83.664,83.63,3.65300867]
[1771590231571,4.34983092,83.664,83.64,3.65300867]
[1771590231973,4.34983092,83.664,83.63,3.65300867]
[1771590232174,4.34983092,83.664,83.631,10.7663]
[1771590232570,4.34983092,83.664,83.63,3.65300867]
[1771590233870,4.36488139,83.663,83.629,181.96395149]
[1771590234064,4.36488139,83.689,83.63,3.65300867]
[1771590234262,3.65300867,83.69,83.63,3.65300867]
[1771590234263,4.33085697,83.687,83.63,3.65300867]
[1771590235675,4.33085186,83.679,83.636,10.7656]
[1771590236774,4.31622498,83.675,83.636,10.7656]
[1771590238179,4.31323512,83.688,83.63,3.65825528]
[1771590239278,10.7581,83.695,83.64,3.65825528]
[1771590239477,10.7581,83.695,83.65,3.65825528]
[1771590239677,15.07133192,83.695,83.65,3.65825528]
[1771590239978,4.31323192,83.694,83.65,3.65825528]
[1771590240180,10.7584,83.693,83.65,3.65825528]
[1771590240775,10.7584,83.693,83.651,10.7637]
[1771590240979,4.31323192,83.694,83.65,3.65825528]
[1771590243683,4.31323192,83.694,83.66,3.65825528]
[1771590244077,4.32131188,83.706,83.67,3.65825528]
[1771590244277,4.32131188,83.706,83.66,3.65825528]
[1771590244880,4.32131188,83.706,83.661,10.7625]
[1771590246182,3.65825528,83.72,83.629,181.96395149]
[1771590246183,4.31219623,83.719,83.68,3.65825528]
[1771590247985,10.7555,83.716,83.68,3.65825528]
[1771590248175,14.67941045,83.754,83.631,21.5325]
[1771590248176,4.31904273,83.731,83.681,10.7598]
[1771590248382,4.31904273,83.742,83.7,3.65825528]
[1771590248687,4.31904273,83.742,83.71,3.65825528]
[1771590251782,4.31904273,83.742,83.69,14.41695528]
[1771590252793,4.39339778,83.774,83.674,21.5216]
[1771590252994,4.39339778,83.774,83.74,3.65825528]
[1771590253293,4.39339778,83.774,83.681,22.17429961]
[1771590253294,4.39339778,83.774,83.73,3.65825528]
[1771590256399,4.39339778,83.774,83.732,10.7532]
[1771590261510,4.39339778,83.774,83.73,3.65825528]
[1771590261511,3.65825528,83.77,83.723,10.7545]
[1771590261695,3.65825528,83.77,83.71,3.65825528]
[1771590261696,4.24512431,83.759,83.71,3.65825528]
[1771590262103,4.24512431,83.759,83.72,10.7549]
[1771590262306,4.24512431,83.759,83.71,3.65825528]
[1771590267204,4.25503886,83.758,83.71,3.65825528]
[1771590269004,4.25499567,83.756,83.71,3.65825528]
[1771590276314,4.25499567,83.756,83.711,10.756]
[1771590279416,4.25499567,83.756,83.717,10.7552]
[1771590284723,4.25499567,83.756,83.71,3.65825528]
[1771590284724,4.25499567,83.756,83.723,10.7545]
[1771590289223,4.25499567,83.756,83.716,10.7554]
[1771590291430,4.25499567,83.756,83.71,3.65825528]
[1771590294435,4.30768466,83.764,83.73,3.65825528]
[1771590294638,4.30768466,83.779,83.73,3.65825528]
[1771590294937,15.05748466,83.76,83.72,3.65825528]
[1771590295234,4.30768466,83.76,83.72,3.65825528]
[1771590297937,4.30768466,83.76,83.72,3.65063456]
[1771590299034,4.30768466,83.76,83.711,10.756]
[1771590299234,4.30768466,83.76,83.719,10.755]
[1771590301938,4.30768466,83.76,83.71,3.65063456]
[1771590301939,4.32323897,83.759,83.71,3.65063456]
[1771590302138,4.32323897,83.759,83.7,3.65063456]
[1771590303936,4.32323897,83.759,83.711,10.756]
[1771590304138,4.30207223,83.757,83.711,10.756]
[1771590305337,4.30207223,83.757,83.683,21.5192]
[1771590305338,4.30207223,83.757,83.72,3.65063456]
[1771590306833,4.30207223,83.757,83.73,10.7536]
[1771590307739,4.3008694,83.767,83.73,10.7536]
[1771590308234,4.3008694,83.767,83.736,10.7528]
[1771590308438,4.29776401,83.777,83.72,3.65063456]
[1771590309035,4.29776401,83.777,83.717,22.17429961]
[1771590309036,4.29776401,83.777,83.748,10.7512]
[1771590309734,4.29776329,83.789,83.73,3.65063456]
[1771590309939,3.65063456,83.79,83.741,3.77894882]
[1771590310241,12.22762594,83.819,83.741,3.77894882]
[1771590310242,3.65063456,83.78,83.741,3.77894882]
[1771590311034,10.7442,83.804,83.741,3.77894882]
[1771590311235,8.85131843,83.803,83.751,3.78152147]
[1771590311439,3.65063456,83.81,83.751,3.78152147]
[1771590311642,8.84483912,83.809,83.761,3.78152147]
[1771590311831,4.0016731,83.807,83.761,3.78152147]
[1771590312036,4.0016731,83.805,83.761,3.78152147]
[1771590312237,4.0016731,83.799,83.749,3.88511427]
[1771590312536,4.0016731,83.797,83.749,3.88511427]
[1771590312735,4.0016731,83.795,83.749,3.88511427]
[1771590313836,4.0016731,83.795,83.758,10.7499]
[1771590315337,4.0016731,83.795,83.749,3.88511427]
[1771590325342,4.0016731,83.795,83.751,10.7508]
[1771590327948,4.0016731,83.789,83.751,10.7508]
[1771590328255,4.0016731,83.789,83.752,3.75017621]
[1771590331250,10.7464,83.787,83.752,3.75017621]
[1771590331450,4.0016731,83.786,83.752,3.75017621]
[1771590332250,10.7466,83.785,83.752,3.75017621]
[1771590335157,10.7453,83.795,83.752,3.75017621]
[1771590335357,14.7469731,83.795,83.752,3.75017621]
[1771590335556,4.0016731,83.794,83.752,3.75017621]
[1771590336252,4.0016731,83.792,83.752,3.75017621]
[1771590340256,4.0016731,83.792,83.753,10.7506]
[1771590340462,4.0016731,83.792,83.754,3.65857135]
[1771590344362,14.54708212,83.79,83.754,3.65857135]
[1771590345553,3.80108212,83.789,83.754,3.65857135]
[1771590347065,10.746,83.79,83.703,59.94442394]
[1771590347066,3.80108212,83.78,83.727,3.65857135]
[1771590347363,3.80108212,83.78,83.731,3.65857135]
[1771590347965,3.80108212,83.779,83.731,3.65857135]
[1771590348667,3.80108212,83.778,83.731,3.65857135]
[1771590349971,3.80108212,83.778,83.741,3.65857135]
[1771590355481,3.80108212,83.778,83.744,3.65857135]
[1771590357389,3.80108212,83.778,83.747,10.7514]
[1771590357584,7.45171668,83.8,83.751,3.65857135]
[1771590357790,3.80108212,83.798,83.751,3.65857135]
[1771590357990,8.84475824,83.797,83.751,3.65857135]
[1771590358191,3.80108212,83.798,83.751,3.65857135]
[1771590358390,8.84473671,83.797,83.751,3.65857135]
[1771590358580,3.80108212,83.798,83.755,3.65857135]
[1771590358784,3.80108212,83.798,83.714,21.5112]
[1771590358785,3.80108212,83.791,83.743,3.65857135]
[1771590358985,3.80108212,83.789,83.743,3.65857135]
[1771590359184,3.80108212,83.779,83.743,3.65857135]
[1771590359683,3.80108212,83.779,83.739,10.7523]
[1771590359890,3.80108212,83.779,83.723,3.65857135]
[1771590360091,3.80108212,83.759,83.712,3.65857135]
[1771590360292,3.80108212,83.749,83.712,3.65857135]
[1771590360981,3.80108212,83.749,83.7,7.30893127]
[1771590361981,3.80108212,83.749,83.703,34.1920498]
[1771590362590,3.80108212,83.765,83.711,3.65857135]
[1771590362790,3.80108212,83.765,83.731,3.65857135]
[1771590363791,3.80108212,83.779,83.731,3.65857135]
[1771590364390,3.80108212,83.779,83.74,3.65035992]
[1771590364693,3.80108212,83.779,83.74,7.30893127]
[1771590365287,3.80108212,83.779,83.741,3.91725203]
[1771590368300,10.7451,83.797,83.751,3.91905783]
[1771590368593,3.71394014,83.796,83.751,3.91905783]
[1771590370389,14.45934014,83.794,83.751,3.91905783]
[1771590371495,3.71394014,83.793,83.751,3.91905783]
[1771590372899,10.7458,83.792,83.751,3.91905783]
[1771590373895,3.71394014,83.789,83.74,7.56941775]
[1771590374092,3.71394014,83.789,83.741,3.91905783]
[1771590375099,3.71394014,83.789,83.75,3.65035992]
[1771590375700,10.7469,83.783,83.75,3.65035992]
[1771590376308,10.7469,83.783,83.741,3.91905783]
[1771590378706,3.71394014,83.789,83.742,3.91905783]
[1771590379702,3.71394014,83.789,83.751,3.91905783]
[1771590380805,10.7463,83.788,83.751,3.91905783]
[1771590381010,3.71394014,83.787,83.751,3.91905783]
[1771590385900,3.71394014,83.787,83.752,10.7508]
[1771590388503,3.71394014,83.787,83.758,10.7499]
[1771590389311,3.71394014,83.787,83.751,14.66985783]
[1771590391313,3.71394014,83.787,83.751,3.91905783]
[1771590394917,12.54803005,83.798,83.751,3.91905783]
[1771590395117,3.71394014,83.798,83.751,3.91905783]
[1771590395717,3.71394014,83.798,83.752,3.91905783]
[1771590403523,3.71394014,83.798,83.753,10.7506]
[1771590403828,3.71394014,83.798,83.754,3.83792998]
[1771590404331,3.71394014,83.798,83.756,3.83792998]
[1771590406032,3.71394014,83.798,83.759,3.83792998]
[1771590406637,3.71394014,83.798,83.76,10.7498]
[1771590408438,3.71394014,83.798,83.76,14.58772998]
[1771590409040,3.71394014,83.798,83.766,10.7489]
[1771590411340,3.71394014,83.798,83.76,7.4882899]
[1771590411537,3.71394014,83.798,83.761,3.83792998]
[1771590411731,3.71394014,83.798,83.759,10.7498]
[1771590413340,3.71394014,83.798,83.765,10.749]
[1771590415442,3.71394014,83.798,83.76,3.83792998]
[1771590417536,3.71394014,83.798,83.761,3.83792998]
[1771590424148,3.78127537,83.796,83.761,3.83792998]
[1771590427444,3.79056604,83.809,83.763,3.75537045]
[1771590427641,8.83816646,83.808,83.771,3.75537045]
[1771590427848,3.79056604,83.819,83.771,3.75537045]
[1771590428053,8.83781439,83.818,83.771,3.75537045]
[1771590428345,8.83781439,83.817,83.771,3.75537045]
[1771590428549,8.83781439,83.816,83.771,3.75537045]
[1771590428848,8.83781439,83.815,83.78,3.75537045]
[1771590429153,3.79056604,83.819,83.78,3.75537045]
[1771590429352,8.83416474,83.818,83.783,3.75537045]
[1771590429551,3.79056604,83.828,83.783,3.75537045]
[1771590429745,3.79056604,83.826,83.783,3.75537045]
[1771590429948,3.79056604,83.824,83.783,3.75537045]
[1771590430149,3.79056604,83.822,83.783,3.75537045]
[1771590430348,12.62391442,83.821,83.783,3.75537045]
[1771590430554,3.64760768,83.83,83.761,3.75537045]
[1771590430555,3.79056604,83.809,83.761,3.75537045]
[1771590431650,3.79056604,83.809,83.772,10.7482]
[1771590432047,3.79056604,83.809,83.773,3.75537045]
[1771590433352,3.79056604,83.809,83.78,10.7471]
[1771590433647,3.79056604,83.809,83.781,3.75537045]
[1771590433852,3.79056604,83.819,83.781,3.75537045]
[1771590434054,8.83019917,83.818,83.781,3.75537045]
[1771590434249,3.79056604,83.819,83.781,3.75537045]
[1771590434250,8.83019917,83.817,83.781,3.75537045]
[1771590434451,3.79056604,83.819,83.781,3.75537045]
[1771590434651,8.8295866,83.818,83.784,10.7467]
[1771590434856,8.8295866,83.817,83.784,14.50207045]
[1771590435055,3.79056604,83.819,83.784,14.50207045]
[1771590435249,3.79056604,83.817,83.784,10.7467]
[1771590435450,3.79056604,83.815,83.784,10.7467]
[1771590435655,3.79056604,83.809,83.777,10.7476]
[1771590436156,3.79056604,83.807,83.777,10.7476]
[1771590436353,3.79056604,83.805,83.777,10.7476]
[1771590438651,3.79056604,83.805,83.761,3.75537045]
[1771590439857,3.79056604,83.805,83.772,10.7482]
[1771590441063,3.79056604,83.805,83.761,3.75537045]
[1771590441262,10.7412,83.828,83.771,3.75537045]
[1771590441263,3.79056604,83.819,83.771,3.75537045]
[1771590441468,3.79056604,83.828,83.781,3.75537045]
[1771590441654,8.81192908,83.827,83.781,3.75537045]
[1771590441858,8.81192908,83.826,83.791,3.75537045]
[1771590442059,8.81192908,83.825,83.791,3.75537045]
[1771590442255,8.81192908,83.824,83.791,3.75537045]
[1771590442459,8.81192908,83.823,83.791,3.75537045]
[1771590442660,3.79056604,83.828,83.791,3.75537045]
[1771590442865,8.81007806,83.827,83.791,3.75537045]
[1771590443064,8.81007806,83.826,83.791,3.75537045]
[1771590443266,8.81007806,83.825,83.791,3.75537045]
[1771590443463,3.79056604,83.828,83.791,3.75537045]
[1771590444264,3.79056604,83.826,83.791,3.75537045]
[1771590444964,3.79056604,83.826,83.774,3.75537045]
[1771590445767,3.79056604,83.819,83.767,3.75537045]
[1771590445969,3.79056604,83.809,83.767,3.75537045]
[1771590449367,3.79056604,83.809,83.71,21.5123]
[1771590449368,3.79056604,83.799,83.754,3.75537045]
[1771590451068,3.79056604,83.797,83.754,3.75537045]
[1771590452768,3.64760768,83.8,83.754,3.75537045]
[1771590452769,3.79056604,83.789,83.754,3.75537045]
[1771590454673,3.79056604,83.789,83.756,10.7503]
[1771590455268,3.79056604,83.789,83.748,10.7512]
[1771590455572,3.79056604,83.779,83.734,3.73700505]
[1771590455973,3.79056604,83.779,83.74,10.7523]
[1771590459576,3.79056604,83.779,83.74,14.49401632]
[1771590460869,3.79056604,83.779,83.732,10.7533]
[1771590461171,3.79056604,83.779,83.732,14.47804096]
[1771590461971,3.79056604,83.779,83.735,10.753]
[1771590462779,3.78497738,83.775,83.733,3.72474096]
[1771590466976,10.7482,83.773,83.733,3.72474096]
[1771590467178,3.78497738,83.772,83.733,3.72474096]
[1771590468981,14.53347738,83.77,83.733,3.72474096]
[1771590469573,3.78497738,83.769,83.733,3.72474096]
[1771590471083,10.7489,83.767,83.733,3.72474096]
[1771590471487,10.7489,83.767,83.694,31.19662551]
[1771590471488,3.64760768,83.74,83.678,78.24632704]
[1771590471783,3.64760768,83.7,83.661,78.24632704]
[1771590471980,10.7578,83.698,83.661,78.24632704]
[1771590472281,10.7578,83.698,83.641,78.24632704]
[1771590473384,3.64760768,83.69,83.641,78.24632704]
[1771590473782,10.7589,83.689,83.641,78.24632704]
[1771590474683,10.7589,83.689,83.626,10.767]
[1771590474684,10.7574,83.701,83.651,78.19777945]
[1771590474879,3.64760768,83.7,83.651,78.19777945]
[1771590475687,10.7582,83.695,83.651,78.19777945]
[1771590476386,10.7594,83.686,83.651,78.19777945]
[1771590478086,3.64760768,83.71,83.661,78.10903976]
[1771590480589,11.6966903,83.73,83.661,78.10903976]
[1771590480789,10.7575,83.7,83.661,78.10903976]
[1771590484288,3.65661783,83.71,83.661,78.10903976]
[1771590484488,10.7587,83.691,83.65,3.65661783]
[1771590486392,10.7587,83.691,83.651,68.37916764]
[1771590486792,10.7597,83.683,83.651,68.37916764]
[1771590489487,10.7607,83.676,83.651,68.37916764]
[1771590489687,10.7607,83.676,83.495,503.249]
[1771590489688,3.65661783,83.68,83.56,22.25230883]
[1771590489889,3.65661783,83.67,83.62,3.65661783]
[1771590490093,3.65661783,83.67,83.61,3.65661783]
[1771590490593,3.65661783,83.66,83.61,3.65661783]
[1771590490793,3.65661783,83.65,83.6,3.65661783]
[1771590491500,10.7637,83.652,83.6,3.65661783]
[1771590491699,10.7637,83.652,83.601,59.24000832]
[1771590493799,21.5171,83.692,83.601,59.24000832]
[1771590493800,3.65661783,83.65,83.601,59.24000832]
[1771590494001,3.65661783,83.65,83.521,21.561]
[1771590494002,3.65661783,83.64,83.581,59.21141782]
[1771590494499,3.65661783,83.63,83.581,59.21141782]
[1771590495102,3.65661783,83.61,83.551,59.20876901]
[1771590495298,3.65661783,83.62,83.571,59.19605081]
[1771590495499,3.65661783,83.64,83.581,59.19605081]
[1771590496000,8.66958342,83.685,83.581,59.19605081]
[1771590496304,10.7649,83.643,83.591,59.19605081]
[1771590496504,3.65661783,83.64,83.591,59.19605081]
[1771590496893,10.7665,83.63,83.591,59.19605081]
[1771590497504,3.65661783,83.63,83.578,59.23415137]
[1771590497803,21.522,83.673,83.578,59.23415137]
[1771590497804,3.65661783,83.62,83.578,59.23415137]
[1771590498204,10.7688,83.612,83.578,59.23415137]
[1771590498795,11.12713644,83.677,83.552,59.231955]
[1771590498796,10.7712,83.594,83.552,59.231955]
[1771590499001,3.65661783,83.61,83.561,59.231955]
[1771590499397,3.65661783,83.62,83.571,59.2024328]
[1771590500207,3.65661783,83.61,83.571,3.28e-05]
[1771590500705,3.65661783,83.61,83.56,3.65661783]
[1771590500897,10.7706,83.599,83.56,3.65661783]
[1771590501304,10.7706,83.599,83.535,10.7786]
[1771590501504,3.65661783,83.6,83.529,10.7794]
[1771590501808,3.65661783,83.6,83.55,3.65661783]
[1771590502407,3.65661783,83.6,83.551,29.63164851]
[1771590502599,3.65661783,83.61,83.551,29.63164851]
[1771590502802,3.65661783,83.61,83.561,29.63164851]
[1771590503803,10.7703,83.601,83.561,29.63164851]
[1771590504405,10.7719,83.588,83.561,11.37514851]
[1771590505808,10.7706,83.599,83.561,11.37514851]
[1771590513815,10.7694,83.608,83.561,11.37514851]
[1771590515114,10.7694,83.608,83.563,20.33121698]
[1771590517713,3.65661783,83.61,83.564,20.40135122]